bitfinex/quotes_BTCUSD_20251124
["timestamp","ask_amount","ask_price","bid_price","bid_amount"]
[1764005651966,0.06252299,87991.0,87980.0,0.01]
[1764005652308,0.06252299,87991.0,87958.0,0.22738004]
[1764005652309,0.06252299,87991.0,87975.0,0.01]
[1764005652512,0.00728,87992.0,87975.0,0.01148275]
[1764005652737,0.001,87995.0,87975.0,0.00011589]
[1764005653071,28.82508,88000.0,87999.0,0.2272753]
[1764005653243,28.82508,88000.0,87999.0,0.01728]
[1764005653443,28.82508,88000.0,87999.0,0.01]
[1764005653989,28.82508,88000.0,87998.0,0.22727625]
[1764005654190,28.82508,88000.0,87999.0,0.01]
[1764005654406,28.82508,88000.0,87999.0,0.2372753]
[1764005654808,28.82508,88000.0,87999.0,0.2272753]
[1764005655012,28.82508,88000.0,87999.0,0.2372753]
[1764005655889,28.82508,88000.0,87999.0,0.011]
[1764005656291,28.82600928,88000.0,87999.0,2.01]
[1764005656508,28.82600928,88000.0,87999.0,2.411]
[1764005656732,28.82600928,88000.0,87999.0,2.736]
[1764005656921,28.82600928,88000.0,87999.0,2.735]
[1764005657161,28.82600928,88000.0,87999.0,2.736]
[1764005657794,27.88375613,88000.0,87999.0,2.91842299]
[1764005658014,27.54303725,88000.0,87999.0,2.91842299]
[1764005658185,27.50889669,88000.0,87999.0,2.95488198]
[1764005658419,27.17581157,88000.0,87999.0,2.91821299]
[1764005658625,26.84449212,88000.0,87999.0,2.96467198]
[1764005658831,26.81036084,88000.0,87999.0,2.95467198]
[1764005658961,26.52944544,88000.0,87999.0,2.92549299]
[1764005659173,26.24021957,88000.0,87999.0,2.92549299]
[1764005659398,25.93118183,88000.0,87999.0,2.92549299]
[1764005659601,25.60002031,88000.0,87999.0,2.92549299]
[1764005659800,25.2947525,88000.0,87999.0,2.95771723]
[1764005660000,25.26062122,88000.0,87999.0,2.95771723]
[1764005660250,24.91576129,88000.0,87999.0,2.95771723]
[1764005660384,24.91576129,88000.0,87999.0,2.91621299]
[1764005660586,24.64467662,88000.0,87999.0,2.92349299]
[1764005660887,24.3715688,88000.0,87999.0,2.92649299]
[1764005661088,24.08181702,88000.0,87999.0,2.79931299]
[1764005661309,24.08181702,88000.0,87999.0,2.80359299]
[1764005661519,23.16627651,88000.0,87999.0,2.79531299]
[1764005661734,23.13214523,88000.0,87999.0,2.80559299]
[1764005661952,22.80460103,88000.0,87999.0,2.84781723]
[1764005662166,22.80460103,88000.0,87999.0,2.86066009]
[1764005662167,22.27104825,88000.0,87999.0,2.86066009]
[1764005662396,21.83692106,88000.0,87999.0,2.87366009]
[1764005662597,21.53409817,88000.0,87999.0,2.86066009]
[1764005662804,21.27737575,88000.0,87999.0,2.86087009]
[1764005663014,20.76772597,88000.0,87999.0,2.87466009]
[1764005663237,19.57510277,88000.0,87999.0,2.87766009]
[1764005663448,18.95754839,88000.0,87999.0,2.90371973]
[1764005663660,18.46976041,88000.0,87999.0,2.83265263]
[1764005663867,18.43563322,88000.0,87999.0,2.8687945]
[1764005664081,18.15293807,88000.0,87999.0,2.8687945]
[1764005664294,17.8095847,88000.0,87999.0,2.8687945]
[1764005664547,17.57008113,88000.0,87999.0,2.83865263]
[1764005664757,17.29429493,88000.0,87999.0,2.94855263]
[1764005664992,16.78046426,88000.0,87999.0,2.95855263]
[1764005665211,16.57006399,88000.0,87999.0,2.88281492]
[1764005665433,16.57006399,88000.0,87999.0,2.82865263]
[1764005665701,16.34670422,88000.0,87999.0,2.82865263]
[1764005665907,15.98306559,88000.0,87999.0,2.84165263]
[1764005666090,15.80712169,88000.0,87999.0,2.84165263]
[1764005666335,15.80712169,88000.0,87999.0,2.46154715]
[1764005666549,15.80712169,88000.0,87999.0,2.41707]
[1764005666792,15.1652083,88000.0,87999.0,2.74007]
[1764005666997,14.94539805,88000.0,87999.0,2.81259299]
[1764005667201,14.74750895,88000.0,87999.0,2.80259299]
[1764005667413,14.57502374,88000.0,87999.0,2.80259299]
[1764005667626,14.24931303,88000.0,87999.0,2.80259299]
[1764005667839,14.24931303,88000.0,87999.0,2.74007]
[1764005668051,14.24731303,88000.0,87999.0,2.74007]
[1764005668271,14.24731303,88000.0,87999.0,1.79741595]
[1764005668272,14.36253434,88000.0,87999.0,1.79741595]
[1764005668494,0.201814,87999.0,87995.0,0.001]
[1764005668719,0.42909302,87999.0,87995.0,0.001]
[1764005668950,0.323,87996.0,87983.0,0.03931]
[1764005669162,0.201814,87993.0,87983.0,0.03931]
[1764005669386,0.201814,87991.0,87983.0,0.03931]
[1764005669885,0.112034,87989.0,87975.0,0.00990589]
[1764005670076,0.201814,87989.0,87975.0,0.00990589]
[1764005670969,0.301164,87976.0,87975.0,0.00011589]
[1764005671121,0.250204,87976.0,87975.0,0.00011589]
[1764005671725,0.573204,87976.0,87975.0,0.00011589]
[1764005672289,0.574204,87976.0,87975.0,0.00011589]
[1764005672860,0.716314,87976.0,87975.0,0.00011589]
[1764005673022,0.717314,87976.0,87975.0,0.00011589]
[1764005673219,0.525814,87976.0,87975.0,0.00011589]
[1764005673540,0.210094,87976.0,87975.0,0.00011589]
[1764005674073,0.210094,87976.0,87975.0,0.06440589]
[1764005674274,0.210094,87976.0,87975.0,0.00990589]
[1764005674485,0.210094,87976.0,87975.0,0.00011589]
[1764005674709,0.209094,87976.0,87975.0,0.00011589]
[1764005675671,0.209094,87976.0,87975.0,0.05461589]
[1764005675874,0.209094,87976.0,87975.0,0.06440589]
[1764005676225,0.001,87976.0,87975.0,0.14843589]
[1764005676438,0.202814,87976.0,87975.0,0.14843589]
[1764005676779,0.001,87976.0,87975.0,0.14843589]
[1764005677183,0.02,87999.0,87975.0,0.14843589]
[1764005677385,0.02,87999.0,87994.0,0.00979]
[1764005677590,0.201814,87998.0,87994.0,0.00979]
[1764005677835,0.201814,87998.0,87990.0,0.02345]
[1764005677836,0.201814,87998.0,87992.0,0.00979]
[1764005677996,0.201814,87998.0,87990.0,0.02345]
[1764005677997,0.201814,87998.0,87997.0,0.00979]
[1764005678834,0.203814,87998.0,87997.0,0.00979]
[1764005679044,0.203814,87998.0,87979.0,0.23869299]
[1764005679045,0.201814,87998.0,87988.0,0.00979]
[1764005679251,0.201814,87998.0,87987.0,0.00979]
[1764005679806,0.201814,87998.0,87985.0,0.02345]
[1764005680011,0.201814,87998.0,87997.0,0.00979]
[1764005680469,0.202814,87998.0,87997.0,0.00979]
[1764005680623,0.201814,87998.0,87997.0,0.00979]
[1764005680812,0.20268134,87998.0,87997.0,0.00979]
[1764005681025,0.20368134,87998.0,87997.0,0.00979]
[1764005681233,0.20268134,87998.0,87997.0,0.00979]
[1764005681435,0.201814,87997.0,87996.0,0.02043]
[1764005681642,0.00086734,87998.0,87996.0,0.02043]
[1764005681643,0.201814,87998.0,87996.0,0.02043]
[1764005681838,0.20265038,87997.0,87996.0,0.02043]
[1764005682077,0.20265038,87997.0,87996.0,0.03022]
[1764005682462,0.201814,87996.0,87995.0,0.00979]
[1764005682657,0.201814,87998.0,87995.0,0.00979]
[1764005683062,0.201814,87998.0,87989.0,0.00979]
[1764005683662,0.201814,87996.0,87989.0,0.00979]
[1764005683872,0.201814,87998.0,87989.0,0.00979]
[1764005684295,0.201814,87997.0,87989.0,0.00979]
[1764005684524,0.201814,87998.0,87989.0,0.00979]
[1764005684732,0.323,87997.0,87985.0,0.02345]
[1764005684903,0.201814,87994.0,87985.0,0.02345]
[1764005685105,0.02728,87999.0,87985.0,0.02345]
[1764005685106,0.201814,87997.0,87987.0,0.00979]
[1764005685449,0.201814,87998.0,87985.0,0.02345]
[1764005685646,0.201814,87998.0,87997.0,0.00979]
[1764005686070,0.201814,87998.0,87997.0,0.07056]
[1764005686194,0.201814,87998.0,87997.0,0.16815]
[1764005688138,0.02,87999.0,87998.0,0.22727789]
[1764005688346,0.02,87999.0,87998.0,0.39537789]
[1764005688549,0.02089831,87999.0,87998.0,0.39537789]
[1764005688751,0.02089831,87999.0,87998.0,0.07028]
[1764005689247,0.02089831,87999.0,87998.0,0.07128]
[1764005689468,0.04315231,87999.0,87998.0,0.07128]
[1764005689651,0.22271231,87999.0,87998.0,0.1691]
[1764005689856,0.22271231,87999.0,87998.0,0.01079]
[1764005690237,0.22271231,87999.0,87998.0,0.07128]
[1764005690550,0.22271231,87999.0,87998.0,0.1681]
[1764005690761,0.22271231,87999.0,87998.0,0.1691]
[1764005691160,0.22271231,87999.0,87998.0,0.1681]
[1764005691379,0.02089831,87999.0,87998.0,0.1681]
[1764005691565,0.02089831,87999.0,87998.0,0.1691]
[1764005693524,0.02089831,87999.0,87998.0,0.1681]
[1764005693729,0.02089831,87999.0,87998.0,0.39637789]
[1764005694167,0.02089831,87999.0,87998.0,0.39537789]
[1764005694613,0.02089831,87999.0,87998.0,0.39637789]
[1764005695030,0.02089831,87999.0,87998.0,0.39537789]
[1764005695419,0.02089831,87999.0,87998.0,0.39637789]
[1764005696545,0.02089831,87999.0,87998.0,0.39537789]
[1764005696799,0.02089831,87999.0,87998.0,0.39737789]
[1764005697207,0.02089831,87999.0,87998.0,0.1701]
[1764005697502,0.02089831,87999.0,87998.0,0.1681]
[1764005697706,0.02089831,87999.0,87998.0,0.1691]
[1764005698185,0.02089831,87999.0,87998.0,0.1681]
[1764005698372,0.02089831,87999.0,87998.0,0.1691]
[1764005699630,0.02089831,87999.0,87998.0,0.1681]
[1764005700033,0.02089831,87999.0,87998.0,0.1691]
[1764005700376,0.02089831,87999.0,87998.0,0.1681]
[1764005700622,0.02089831,87999.0,87998.0,0.20583]
[1764005700840,0.02089831,87999.0,87998.0,0.20683]
[1764005700841,0.02044831,87999.0,87998.0,0.20683]
[1764005701199,0.02044831,87999.0,87998.0,0.60683]
[1764005701834,0.02044831,87999.0,87998.0,0.61411]
[1764005702062,0.02044831,87999.0,87998.0,0.21411]
[1764005702254,0.02044831,87999.0,87998.0,0.20683]
[1764005702487,0.02044831,87999.0,87998.0,0.20583]
[1764005702980,0.02044831,87999.0,87998.0,0.04952]
[1764005703117,0.02044831,87999.0,87998.0,0.01179]
[1764005703315,0.02044831,87999.0,87996.0,0.00979]
[1764005703555,0.01955,87999.0,87975.0,0.00739589]
[1764005703733,0.10853,87986.0,87975.0,0.00011589]
[1764005703947,0.00728,87985.0,87979.0,0.00979]
[1764005704147,0.00728,87985.0,87975.0,0.00011589]
[1764005704511,0.04815,87976.0,87975.0,0.00011589]
[1764005704743,0.17105299,87976.0,87975.0,0.00011589]
[1764005704944,0.6056075,87976.0,87975.0,0.00011589]
[1764005705381,2.6056075,87976.0,87975.0,0.00011589]
[1764005705761,0.06252299,87950.0,87923.0,0.13555]
[1764005705961,0.00728,87949.0,87934.0,0.00979]
[1764005706162,0.03624,87949.0,87923.0,0.13566596]
[1764005706477,0.06252299,87946.0,87932.0,0.00979]
[1764005706682,0.06252299,87947.0,87932.0,0.00979]
[1764005706883,0.06252299,87945.0,87932.0,0.00979]
[1764005707084,0.21454389,87946.0,87923.0,0.03784596]
[1764005707085,0.06252299,87943.0,87933.0,0.02356]
[1764005707294,0.06252299,87945.0,87940.0,0.00979]
[1764005707477,0.06252299,87945.0,87927.0,0.00979]
[1764005707678,0.06252299,87945.0,87934.0,0.00979]
[1764005707886,0.06252299,87945.0,87939.0,0.00979]
[1764005708082,0.001,87947.0,87923.0,0.03784596]
[1764005708083,0.06252299,87943.0,87934.0,0.00979]
[1764005708289,0.06252299,87943.0,87923.0,0.03784596]
[1764005708491,0.38552299,87943.0,87933.0,0.00979]
[1764005708691,0.20059429,87944.0,87927.0,0.00979]
[1764005708692,0.06252299,87941.0,87927.0,0.00979]
[1764005708874,0.06252299,87941.0,87924.0,0.00979]
[1764005709087,0.42468113,87942.0,87924.0,0.00979]
[1764005709088,0.06252299,87939.0,87924.0,0.00979]
[1764005709265,0.323,87942.0,87923.0,0.03784596]
[1764005709468,0.06252299,87941.0,87938.0,0.00979]
[1764005709765,0.10300429,87939.0,87930.0,0.00979]
[1764005709972,0.00728,87938.0,87930.0,0.00979]
[1764005710151,0.00728,87938.0,87923.0,0.03784596]
[1764005710351,0.00728,87938.0,87926.0,0.00979]
[1764005710572,0.04815,87937.0,87926.0,0.00979]
[1764005710774,0.04815,87937.0,87923.0,0.03784596]
[1764005711305,0.323,87942.0,87923.0,0.03784596]
[1764005711306,0.001,87942.0,87924.0,0.23884262]
[1764005711595,0.04815,87966.0,87924.0,0.23884262]
[1764005711596,0.00728,87938.0,87936.0,0.25099713]
[1764005711763,0.00728,87938.0,87937.0,0.00979]
[1764005712171,0.09031,87960.0,87938.0,0.01137164]
[1764005712373,0.04815,87976.0,87950.0,0.00979]
[1764005712374,0.06252299,87958.0,87950.0,0.00979]
[1764005712549,0.06252299,87958.0,87940.0,0.22742615]
[1764005712891,0.00728,87959.0,87952.0,0.00979]
[1764005713048,0.00728,87958.0,87943.0,0.011371]
[1764005713254,0.00728,87958.0,87957.0,0.00979]
[1764005713471,0.00828,87958.0,87957.0,0.00990596]
[1764005714008,0.00728,87958.0,87957.0,0.00990596]
[1764005714540,0.00928,87958.0,87957.0,0.00011596]
[1764005714743,0.00728,87958.0,87957.0,0.00011596]
[1764005714954,0.22734671,87972.0,87957.0,0.00011596]
[1764005714955,0.00728,87971.0,87959.0,0.01136893]
[1764005715313,0.00728,87971.0,87970.0,0.00979]
[1764005715951,0.00024787,87978.0,87977.0,0.00979]
[1764005716509,0.00024787,87978.0,87977.0,0.16897]
[1764005716859,0.00024787,87978.0,87977.0,0.07484]
[1764005717064,0.00024787,87978.0,87977.0,0.00979]
[1764005717625,0.00024787,87978.0,87977.0,0.16897]
[1764005718029,0.00024787,87978.0,87977.0,0.07484]
[1764005718437,0.00024787,87978.0,87977.0,0.00979]
[1764005719030,0.00024787,87978.0,87977.0,0.01079]
[1764005719417,0.00024787,87978.0,87977.0,0.001]
[1764005719678,0.00024787,87978.0,87977.0,0.01079]
[1764005719818,0.00024787,87978.0,87977.0,0.001]
[1764005720815,0.00024787,87978.0,87977.0,0.01079]
[1764005721106,0.00124787,87978.0,87977.0,0.01079]
[1764005721532,0.00124787,87978.0,87977.0,0.00979]
[1764005724943,0.00024787,87978.0,87977.0,0.16897]
[1764005725515,0.00024787,87978.0,87977.0,0.2067]
[1764005726486,0.00024787,87978.0,87977.0,0.03773]
[1764005726701,0.00024787,87978.0,87969.0,0.02043]
[1764005727023,0.00024787,87978.0,87975.0,0.00979]
[1764005727170,0.00024787,87978.0,87969.0,0.02043]
[1764005727171,0.00024787,87978.0,87977.0,0.00979]
[1764005727376,0.00024787,87978.0,87975.0,0.00979]
[1764005727708,0.00024787,87978.0,87977.0,0.07484]
[1764005728092,0.00024787,87978.0,87977.0,0.00979]
[1764005728293,0.00024787,87978.0,87969.0,0.02043]
[1764005728831,0.02343,87970.0,87963.0,0.02043]
[1764005728989,0.323,87976.0,87963.0,0.02043]
[1764005729425,0.00728,87975.0,87963.0,0.02043]
[1764005729797,0.00728,87975.0,87974.0,0.06505]
[1764005730002,0.00728,87975.0,87974.0,0.07484]
[1764005730844,0.00728,87975.0,87963.0,0.02043]
[1764005731109,0.00728,87975.0,87969.0,0.00979]
[1764005731469,0.00728,87975.0,87966.0,0.00979]
[1764005731851,0.00728,87975.0,87967.0,0.00979]
[1764005732301,0.00728,87975.0,87970.0,0.00979]
[1764005732511,0.00728,87975.0,87963.0,0.02043]
[1764005732512,0.00728,87975.0,87967.0,0.00979]
[1764005732712,0.06252299,87974.0,87967.0,0.00979]
[1764005732917,0.10828,87964.0,87957.0,0.00011596]
[1764005733117,0.00728,87963.0,87959.0,0.00979]
[1764005733400,0.00728,87963.0,87962.0,0.00979]
[1764005733604,0.00728,87963.0,87959.0,0.00979]
[1764005733802,0.00728,87963.0,87957.0,0.00011596]
[1764005734104,0.00728,87963.0,87962.0,0.00979]
[1764005734665,0.0067116,87963.0,87957.0,0.00011596]
[1764005734883,0.0067116,87963.0,87959.0,0.00979]
[1764005735052,0.0067116,87963.0,87962.0,0.07484]
[1764005735714,0.0067116,87963.0,87962.0,0.16897]
[1764005735867,0.06252299,87975.0,87973.0,0.00979]
[1764005735868,0.38552299,87974.0,87973.0,0.00979]
[1764005736058,0.00728,87975.0,87962.0,0.15918]
[1764005736256,0.02343,87992.0,87977.0,0.00979]
[1764005736462,0.02343,87992.0,87977.0,0.07484]
[1764005736704,0.02343,87992.0,87977.0,0.39630214]
[1764005736876,0.05182374,87992.0,87977.0,0.39630214]
[1764005737101,0.05182374,87992.0,87977.0,0.16897]
[1764005737428,0.01565308,87991.0,87977.0,0.16897]
[1764005737624,0.02343,87992.0,87977.0,0.16897]
[1764005737836,0.01143281,87991.0,87977.0,0.00979]
[1764005738050,0.06252299,87990.0,87977.0,0.00979]
[1764005738179,0.02841264,87989.0,87977.0,0.00979]
[1764005738385,0.323,87990.0,87977.0,0.16897]
[1764005738802,0.02841264,87989.0,87977.0,0.07484]
[1764005739007,0.323,87990.0,87977.0,0.16897]
[1764005739620,0.00728,87993.0,87977.0,0.39630214]
[1764005739821,0.00728,87993.0,87977.0,0.16897]
[1764005741070,0.00728,87993.0,87977.0,0.00979]
[1764005741287,0.03569135,87993.0,87977.0,0.16897]
[1764005741900,0.03569135,87993.0,87977.0,0.07484]
[1764005742361,0.02533423,87993.0,87977.0,0.07484]
[1764005742545,0.06252299,87992.0,87977.0,0.07484]
[1764005742743,0.03569135,87993.0,87977.0,0.07484]
[1764005742744,0.06252299,87990.0,87977.0,0.07484]
[1764005742956,0.00728,87993.0,87977.0,0.16897]
[1764005743157,0.06252299,87992.0,87977.0,0.07484]
[1764005743369,0.06252299,87990.0,87977.0,0.07484]
[1764005743558,0.38552299,87988.0,87975.0,0.00979]
[1764005743758,0.02841328,87987.0,87975.0,0.00979]
[1764005744024,0.02841328,87987.0,87970.0,0.03773]
[1764005744025,0.02841328,87987.0,87973.0,0.00979]
[1764005744235,0.09528,87986.0,87970.0,0.03773]
[1764005744465,0.02841393,87985.0,87977.0,0.00979]
[1764005744702,0.02841393,87985.0,87976.0,0.00979]
[1764005744958,0.02841328,87987.0,87977.0,0.07161]
[1764005745389,0.06252299,87990.0,87977.0,0.16656]
[1764005745607,0.06252299,87990.0,87977.0,0.39389214]
[1764005745835,0.14147792,87978.0,87977.0,0.00932]
[1764005746052,0.14147792,87978.0,87947.0,0.03391]
[1764005746053,0.06252299,87965.0,87947.0,0.03391]
[1764005746264,0.06252299,87962.0,87947.0,0.03391]
[1764005746481,0.06252299,87960.0,87947.0,0.03391]
[1764005746690,0.06252299,87958.0,87947.0,0.03391]
[1764005746902,0.34430573,87958.0,87947.0,0.03391]
[1764005747318,0.323,87958.0,87957.0,0.00943596]
[1764005747589,0.323,87958.0,87957.0,0.00011596]
[1764005747936,0.00728,87964.0,87957.0,0.06656596]
[1764005748183,0.02129815,87963.0,87962.0,0.00932]
[1764005748422,0.00028792,87978.0,87963.0,0.06645]
[1764005748629,0.01136673,87976.0,87971.0,0.00932]
[1764005748838,0.33446088,87976.0,87957.0,0.00011596]
[1764005749058,0.01136802,87966.0,87957.0,0.00011596]
[1764005749174,0.23873402,87964.0,87957.0,0.00943596]
[1764005749376,0.01136841,87963.0,87957.0,0.00011596]
[1764005749795,0.23874702,87960.0,87957.0,0.00011596]
[1764005750247,0.0113688,87960.0,87957.0,0.00011596]
[1764005750651,0.22737866,87959.0,87957.0,0.00011596]
[1764005750863,0.02128636,87958.0,87957.0,0.00011596]
[1764005751039,0.06252299,87962.0,87957.0,0.00011596]
[1764005751277,0.00728,87963.0,87957.0,0.00011596]
[1764005751445,0.00728,87963.0,87962.0,0.00932]
[1764005752011,0.00728,87963.0,87957.0,0.00011596]
[1764005752858,0.01136854,87962.0,87957.0,0.00011596]
[1764005753054,0.0113688,87960.0,87957.0,0.00011596]
[1764005753261,0.23874639,87960.0,87957.0,0.00011596]
[1764005753481,0.22738063,87959.0,87957.0,0.00011596]
[1764005753686,0.06483,87958.0,87957.0,0.00011596]
[1764005754573,0.323,87960.0,87957.0,0.00011596]
[1764005754774,0.001,87958.0,87957.0,0.00011596]
[1764005755367,0.001,87958.0,87957.0,0.00943596]
[1764005756935,0.001,87958.0,87957.0,0.07588596]
[1764005757822,0.001,87958.0,87957.0,0.00943596]
[1764005758353,0.001,87958.0,87957.0,0.00011596]
[1764005759319,0.00728,87963.0,87957.0,0.17176596]
[1764005759542,0.00728,87963.0,87962.0,0.00932]
[1764005760392,0.00828,87963.0,87962.0,0.00932]
[1764005760596,0.001,87963.0,87962.0,0.17165]
[1764005760765,0.00028792,87978.0,87977.0,0.00932]
[1764005760963,0.00028792,87978.0,87977.0,0.0998]
[1764005761165,0.00028792,87978.0,87977.0,0.19568]
[1764005761707,0.00028792,87978.0,87977.0,0.00932]
[1764005761889,0.05040792,87978.0,87969.0,0.00932]
[1764005762231,0.05040792,87978.0,87961.0,0.03391]
[1764005762232,0.02841651,87977.0,87961.0,0.03391]
[1764005762360,0.06980299,87976.0,87961.0,0.03391]
[1764005762562,0.02841716,87975.0,87961.0,0.03391]
[1764005762788,0.06252299,87974.0,87961.0,0.03391]
[1764005762991,0.06252299,87972.0,87961.0,0.03391]
[1764005763205,0.06252299,87970.0,87962.0,0.00932]
[1764005763424,0.323,87975.0,87962.0,0.00932]
[1764005763616,0.323,87975.0,87967.0,0.00932]
[1764005763830,0.323,87975.0,87974.0,0.00932]
[1764005764401,0.00728,87976.0,87972.0,0.00932]
[1764005764593,0.00728,87976.0,87973.0,0.00932]
[1764005765366,0.00728,87976.0,87975.0,0.00932]
[1764005765518,0.00028792,87978.0,87975.0,0.06645]
[1764005765686,0.00028792,87978.0,87977.0,0.06645]
[1764005765883,0.001,87975.0,87972.0,0.02403]
[1764005766129,0.001,87975.0,87974.0,0.00932]
[1764005766334,0.00028792,87978.0,87977.0,0.00932]
[1764005766666,0.00728,87990.0,87974.0,0.06645]
[1764005766954,0.01136531,87987.0,87975.0,0.00932]
[1764005767155,0.26708842,87986.0,87973.0,0.00932]
[1764005767364,0.22731147,87985.0,87973.0,0.00932]
[1764005767532,0.01136609,87981.0,87972.0,0.02403]
[1764005767733,0.02343175,87980.0,87972.0,0.02403]
[1764005767949,0.06252299,87972.0,87957.0,0.00011596]
[1764005768152,0.29184125,87958.0,87957.0,0.00011596]
[1764005768311,0.36164424,87958.0,87957.0,0.00011596]
[1764005768511,0.22505299,87958.0,87957.0,0.00011596]
[1764005768713,0.54805299,87958.0,87957.0,0.00011596]
[1764005769775,0.33436738,87971.0,87957.0,0.00011596]
[1764005769977,0.06252299,87969.0,87957.0,0.00011596]
[1764005770177,0.06252299,87967.0,87957.0,0.00011596]
[1764005770336,0.00728,87970.0,87957.0,0.00011596]
[1764005770337,0.00728,87970.0,87968.0,0.00932]
[1764005770654,0.00728,87970.0,87957.0,0.02285434]
[1764005771246,0.00728,87970.0,87961.0,0.00932]
[1764005771423,0.00728,87970.0,87957.0,0.02285434]
[1764005771624,0.00728,87970.0,87967.0,0.00932]
[1764005771852,0.00728,87970.0,87961.0,0.00932]
[1764005772069,0.00728,87970.0,87958.0,0.02273812]
[1764005772266,0.00728,87970.0,87961.0,0.00932]
[1764005772526,0.00728,87970.0,87969.0,0.00932]
[1764005772725,0.00728,87970.0,87961.0,0.00932]
[1764005773741,0.00728,87970.0,87961.0,0.01]
[1764005773967,0.05347781,87973.0,87958.0,0.02273812]
[1764005773968,0.0265873,87973.0,87971.0,0.01]
[1764005774245,0.06252299,87974.0,87962.0,0.02403]
[1764005774414,0.02683609,87973.0,87962.0,0.02403]
[1764005774840,0.03820321,87973.0,87962.0,0.02403]
[1764005775009,0.02683609,87973.0,87962.0,0.02403]
[1764005775577,0.00728,87975.0,87967.0,0.01]
[1764005775721,0.01092646,87974.0,87967.0,0.01]
[1764005776461,0.00728,87975.0,87962.0,0.02403]
[1764005776664,0.00728,87975.0,87974.0,0.06234]
[1764005776839,0.00728,87975.0,87974.0,0.07234]
[1764005777539,0.22726574,88003.0,87974.0,0.07234]
[1764005777540,0.00728,87984.0,87983.0,0.01]
[1764005778708,0.00024783,87986.0,87983.0,0.07234]
[1764005778917,0.00024783,87986.0,87985.0,0.01]
[1764005779454,0.00024783,87986.0,87985.0,0.07234]
[1764005779878,0.00124783,87986.0,87985.0,0.07234]
[1764005780077,0.00024783,87986.0,87985.0,0.16822596]
[1764005780287,0.00024783,87986.0,87985.0,0.07245596]
[1764005780493,0.00124783,87986.0,87985.0,0.07245596]
[1764005782332,0.00124783,87986.0,87985.0,0.01011596]
[1764005783266,0.00124783,87986.0,87985.0,0.07245596]
[1764005783470,0.00124783,87986.0,87985.0,0.01011596]
[1764005783677,0.00124783,87986.0,87985.0,0.07245596]
[1764005783854,0.00124783,87986.0,87985.0,0.16822596]
[1764005784968,0.14431783,87986.0,87985.0,0.00011596]
[1764005785180,0.15524429,87986.0,87985.0,0.00011596]
[1764005785751,0.38155318,87986.0,87985.0,0.00011596]
[1764005785952,0.37062672,87986.0,87985.0,0.00011596]
[1764005787449,0.69362672,87986.0,87985.0,0.00011596]
[1764005787922,0.69362672,87986.0,87949.0,0.01137022]
[1764005787923,0.01136893,87959.0,87948.0,0.0343]
[1764005788144,0.01136893,87959.0,87953.0,0.0001161]
[1764005788348,0.01136932,87956.0,87953.0,0.0001161]
[1764005788501,0.23875586,87956.0,87953.0,0.0001161]
[1764005788703,0.22739159,87954.0,87953.0,0.0001161]
[1764005789114,0.01136932,87956.0,87953.0,0.0001161]
[1764005789115,0.2387559,87956.0,87953.0,0.0001161]
[1764005789321,0.29000159,87954.0,87953.0,0.0001161]
[1764005789525,0.06261,87954.0,87953.0,0.0001161]
[1764005789863,0.07397957,87954.0,87943.0,0.03427968]
[1764005790141,0.07397957,87954.0,87943.0,0.00011612]
[1764005790142,0.02854,87944.0,87943.0,0.00011612]
[1764005790543,0.04887,87947.0,87943.0,0.00011612]
[1764005791010,0.22741607,87945.0,87943.0,0.00011612]
[1764005791188,0.323,87956.0,87943.0,0.00011612]
[1764005791507,0.04887,87958.0,87943.0,0.00011612]
[1764005791508,0.00728,87955.0,87944.0,0.01]
[1764005791719,0.0113697,87953.0,87947.0,0.01]
[1764005792001,0.01136983,87952.0,87944.0,0.01]
[1764005792149,0.01137009,87950.0,87943.0,0.00011612]
[1764005792351,0.33436996,87951.0,87943.0,0.00011612]
[1764005792550,0.33436996,87951.0,87944.0,0.01]
[1764005792747,0.323,87951.0,87943.0,0.00011612]
[1764005792994,0.001,87953.0,87952.0,0.23739676]
[1764005793206,0.01288484,87967.0,87966.0,0.01]
[1764005793827,0.28757364,87976.0,87970.0,0.01]
[1764005794048,0.04887,87976.0,87970.0,0.01]
[1764005794495,0.04887,87976.0,87975.0,0.01]
[1764005794701,0.323,87975.0,87955.0,0.00728]
[1764005795033,0.323,87975.0,87972.0,0.01]
[1764005795196,0.323,87975.0,87970.0,0.01]
[1764005795397,0.323,87975.0,87956.0,0.09577]
[1764005795398,0.323,87975.0,87973.0,0.01]
[1764005795852,0.22734764,87971.0,87955.0,0.00011612]
[1764005795980,0.14269,87974.0,87959.0,0.01]
[1764005796186,0.14269,87974.0,87955.0,0.00011612]
[1764005796187,0.04887,87974.0,87964.0,0.01]
[1764005796390,0.04887,87974.0,87956.0,0.22738642]
[1764005796588,0.001,87975.0,87964.0,0.01]
[1764005796589,0.01092646,87973.0,87964.0,0.01]
[1764005796792,0.001,87975.0,87957.0,0.02273838]
[1764005796793,0.001,87975.0,87974.0,0.01]
[1764005797648,0.00728,87978.0,87976.0,0.01]
[1764005797884,0.00728,87978.0,87974.0,0.01]
[1764005798078,0.323,87983.0,87974.0,0.01]
[1764005798300,0.01092646,87982.0,87974.0,0.01]
[1764005798859,0.01092646,87982.0,87968.0,0.22735477]
[1764005799060,0.01092646,87982.0,87968.0,0.23872254]
[1764005799266,0.00024783,87986.0,87981.0,0.0343]
[1764005799463,0.00024783,87986.0,87981.0,0.09664]
[1764005799689,0.00024783,87986.0,87984.0,0.01]
[1764005800460,0.00024783,87986.0,87981.0,0.0343]
[1764005800806,0.00024783,87986.0,87985.0,0.07234]
[1764005802431,0.00024783,87986.0,87985.0,0.16811]
[1764005804105,0.00024783,87986.0,87985.0,0.39542147]
[1764005805166,0.00024783,87986.0,87985.0,0.39642147]
[1764005805372,0.00024783,87986.0,87985.0,0.39742147]
[1764005805732,0.00024783,87986.0,87985.0,0.39642147]
[1764005805928,0.00024783,87986.0,87985.0,0.40570147]
[1764005807229,0.00024783,87986.0,87985.0,0.17739]
[1764005807429,0.00024783,87986.0,87985.0,0.17839]
[1764005807887,0.00024783,87986.0,87985.0,0.17639]
[1764005808311,0.00024783,87986.0,87985.0,0.16911]
[1764005808821,0.00024783,87986.0,87985.0,0.17011]